fUST/lending_fUST_20250809
["ID","MTS","AMOUNT","RATE_DAILY","PERIOD"]
[378075578,1754717444034,-463.04226455,0.00021917,2]
[378075580,1754717444043,-460.0,0.00021917,2]
[378075581,1754717444053,-463.92512259,0.00021917,2]
[378075583,1754717444062,-460.0,0.00021917,2]
[378075586,1754717444072,-460.0,0.00021917,2]
[378075587,1754717444082,-460.0,0.00021917,2]
[378075589,1754717444091,-460.0,0.00021917,2]
[378075591,1754717444100,-460.0,0.00021917,2]
[378075593,1754717444110,-460.0,0.00021917,2]
[378075595,1754717444119,-460.0,0.00021917,2]
[378075597,1754717444128,-463.73275121,0.00021917,2]
[378075599,1754717444139,-1807.89,0.00021917,2]
[378075601,1754717444148,-461.36843791,0.00021917,2]
[378075603,1754717444157,-460.0,0.00021917,2]
[378075606,1754717444168,-460.0,0.00021917,2]
[378075607,1754717444177,-460.0,0.00021917,2]
[378075610,1754717444187,-462.70736314,0.00021917,2]
[378075611,1754717444197,-460.0,0.00021917,2]
[378075613,1754717444206,-461.35212272,0.00021917,2]
[378075615,1754717444216,-460.0,0.00021917,2]
[378075617,1754717444227,-460.0,0.00021917,2]
[378075618,1754717444236,-460.50200028,0.00021917,2]
[378075620,1754717444245,-1773.57,0.00021917,2]
[378075622,1754717444254,-460.0,0.00021917,2]
[378075624,1754717444264,-1299.54,0.00021917,2]
[378075626,1754717444274,-460.0,0.00021917,2]
[378075628,1754717444283,-460.0,0.00021917,2]
[378075630,1754717444292,-460.0,0.00021917,2]
[378075632,1754717444303,-460.0,0.00021917,2]
[378075634,1754717444312,-460.0,0.00021917,2]
[378075636,1754717444321,-460.0,0.00021917,2]
[378075638,1754717444330,-460.0,0.00021917,2]
[378075639,1754717444339,-726.66,0.00021917,2]
[378075641,1754717444348,-460.0,0.00021917,2]
[378075643,1754717444358,-460.0,0.00021917,2]
[378075645,1754717444367,-649.7,0.00021917,2]
[378075647,1754717444376,-460.0,0.00021917,2]
[378075649,1754717444385,-464.14570703,0.00021917,2]
[378075651,1754717444394,-460.0,0.00021917,2]
[378075653,1754717444404,-1110.73,0.00021917,2]
[378075655,1754717444413,-460.0,0.00021917,2]
[378075657,1754717444422,-460.0,0.00021917,2]
[378075659,1754717444431,-1447.77,0.00021917,2]
[378075661,1754717444440,-971.96,0.00021917,2]
[378075663,1754717444450,-460.0,0.00021917,2]
[378075665,1754717444459,-460.0,0.00021917,2]
[378075667,1754717444468,-500.75,0.00021917,2]
[378075668,1754717444477,-460.0,0.00021917,2]
[378075670,1754717444486,-460.0,0.00021917,2]
[378075672,1754717444495,-460.0,0.00021917,2]
[378075674,1754717444504,-461.88001973,0.00021917,2]
[378075676,1754717444514,-460.0,0.00021917,2]
[378075678,1754717444526,-460.0,0.00021917,2]
[378075680,1754717444535,-460.0,0.00021917,2]
[378075682,1754717444545,-460.0,0.00021917,2]
[378075684,1754717444557,-460.0,0.00021917,2]
[378075686,1754717444566,-460.0,0.00021917,2]
[378075688,1754717444575,-460.0,0.00021917,2]
[378075690,1754717444584,-460.0,0.00021917,2]
[378075692,1754717444594,-460.0,0.00021917,2]
[378075694,1754717444604,-460.0,0.00021917,2]
[378075696,1754717444613,-460.0,0.00021917,2]
[378075698,1754717444622,-460.53905242,0.00021917,2]
[378075700,1754717444631,-460.0,0.00021917,2]
[378075702,1754717444641,-463.11882144,0.00021917,2]
[378075704,1754717444651,-460.0,0.00021917,2]
[378075705,1754717444661,-460.0,0.00021917,2]
[378075708,1754717444670,-460.0,0.00021917,2]
[378075709,1754717444680,-460.0,0.00021917,2]
[378075711,1754717444689,-460.0,0.00021917,2]
[378075713,1754717444699,-327.68378311,0.00021917,2]
[378075715,1754717444708,-460.0,0.00021917,2]
[378075717,1754717444718,-460.0,0.00021917,2]
[378075719,1754717444728,-460.0,0.00021917,2]
[378075721,1754717444737,-460.0,0.00021917,2]
[378075723,1754717444746,-460.0,0.00021917,2]
[378075725,1754717444756,-672.29,0.00021917,2]
[378075727,1754717444765,-460.0,0.00021917,2]
[378075729,1754717444774,-1699.23,0.00021917,2]
[378075731,1754717444783,-460.0,0.00021917,2]
[378075733,1754717444792,-460.0,0.00021917,2]
[378075735,1754717444802,-460.0,0.00021917,2]
[378075737,1754717444811,-460.0,0.00021917,2]
[378075739,1754717444822,-460.0,0.00021917,2]
[378075741,1754717444831,-460.0,0.00021917,2]
[378075743,1754717444840,-520.08,0.00021917,2]
[378075745,1754717444849,-460.0,0.00021917,2]
[378075746,1754717444859,-460.0,0.00021917,2]
[378075749,1754717444868,-3585.3,0.00021917,2]
[378075750,1754717444878,-889.0,0.00021917,2]
[378075753,1754717444890,-460.0,0.00021917,2]
[378075754,1754717444899,-460.0,0.00021917,2]
[378075757,1754717444911,-607.44,0.00021917,2]
[378075759,1754717444923,-460.0,0.00021917,2]
[378075761,1754717444934,-460.0,0.00021917,2]
[378075762,1754717444944,-460.0,0.00021917,2]
[378075764,1754717444956,-160.0,0.00021917,2]
[378075766,1754717444965,-460.0,0.00021917,2]
[378075768,1754717444975,-462.0650651,0.00021917,2]
[378075770,1754717444985,-460.0,0.00021917,2]
[378075771,1754717444994,-460.19597531,0.00021917,2]
[378075772,1754717445003,-520.64,0.00021917,2]
[378075773,1754717445012,-460.0,0.00021917,2]
[378075774,1754717445021,-460.0,0.00021917,2]
[378075775,1754717445030,-461.93705158,0.00021917,2]
[378075776,1754717445039,-158.7591481,0.00021918,2]
[378075777,1754717445048,-200.0,0.00021918,2]
[378075778,1754717445057,-500.0,0.00021918,2]
[378075779,1754717445066,-486.74297872,0.00021918,2]
[378075780,1754717445075,-2183.31810187,0.00021926,2]
[378075781,1754717445084,-500.0,0.00021926,2]
[378075782,1754717445093,-500.0,0.00021926,2]
[378075783,1754717445102,-151.0,0.00021926,2]
[378075784,1754717445111,-151.0,0.00021926,2]
[378075785,1754717445120,-151.0,0.00021926,2]
[378075786,1754717445129,-151.0,0.00021926,2]
[378075787,1754717445139,-500.0,0.00021926,2]
[378075788,1754717445147,-151.0,0.00021926,2]
[378075789,1754717445157,-20633.42279861,0.00021926,2]
[378075790,1754717445166,-151.0,0.00021926,2]
[378075791,1754717445175,-500.0,0.00021926,2]
[378075792,1754717445185,-151.0,0.00021926,2]
[378075793,1754717445194,-500.0,0.00021926,2]
[378075794,1754717445203,-151.0,0.00021926,2]
[378075795,1754717445213,-151.0,0.00021926,2]
[378075796,1754717445222,-151.0,0.00021926,2]
[378075797,1754717445231,-151.0,0.00021926,2]
[378075798,1754717445240,-500.0,0.00021926,2]
[378075799,1754717445250,-151.0,0.00021926,2]
[378075800,1754717445259,-151.0,0.00021926,2]
[378075801,1754717445268,-500.0,0.00021926,2]
[378075802,1754717445277,-151.0,0.00021926,2]
[378075803,1754717445286,-151.0,0.00021926,2]
[378075804,1754717445295,-151.0,0.00021926,2]
[378075805,1754717445305,-151.0,0.00021926,2]
[378075806,1754717445314,-500.0,0.00021926,2]
[378075807,1754717445323,-264.37813709,0.00021926,2]
[378075808,1754717445332,-151.0,0.00021926,2]
[378075809,1754717445341,-500.0,0.00021926,2]
[378075810,1754717445351,-151.0,0.00021926,2]
[378075811,1754717445360,-151.0,0.00021926,2]
[378075812,1754717445369,-500.0,0.00021926,2]
[378075813,1754717445378,-151.0,0.00021926,2]
[378075814,1754717445387,-151.0,0.00021926,2]
[378075815,1754717445396,-500.0,0.00021926,2]
[378075816,1754717445405,-151.0,0.00021926,2]
[378075817,1754717445413,-151.0,0.00021926,2]
[378075818,1754717445422,-151.0,0.00021926,2]
[378075819,1754717445431,-151.0,0.00021926,2]
[378075820,1754717445440,-151.0,0.00021926,2]
[378075821,1754717445449,-500.0,0.00021926,2]
[378075822,1754717445459,-151.0,0.00021926,2]
[378075824,1754717445468,-151.0,0.00021926,2]
[378075825,1754717445477,-500.0,0.00021926,2]
[378075827,1754717445486,-151.0,0.00021926,2]
[378075828,1754717445495,-151.0,0.00021926,2]
[378075830,1754717445504,-255.82720007,0.00021926,2]
[378075831,1754717445515,-151.0,0.00021926,2]
[378075834,1754717445526,-151.0,0.00021926,2]
[378075836,1754717445535,-151.0,0.00021926,2]
[378075838,1754717445544,-151.0,0.00021926,2]
[378075845,1754717445632,-151.0,0.00021926,2]
[378075846,1754717445642,-151.0,0.00021926,2]
[378075847,1754717445652,-151.0,0.00021926,2]
[378075848,1754717445661,-300.0,0.00021926,2]
[378075849,1754717445671,-152.94290677,0.00021926,2]
[378075850,1754717445682,-305.10817957,0.00021926,2]
[378075851,1754717445691,-250.0,0.00021926,2]
[378075852,1754717445700,-250.0,0.00021926,2]
[378075853,1754717445710,-151.0,0.00021926,2]
[378075854,1754717445719,-151.0,0.00021926,2]
[378075855,1754717445729,-500.0,0.00021973,2]
[378075856,1754717445738,-500.0,0.00021973,2]
[378075857,1754717445748,-500.0,0.00021973,2]
[378075858,1754717445757,-502.14720231,0.00021973,2]
[378075859,1754717445767,-500.50204819,0.00021973,2]
[378075860,1754717445776,-315.30716032,0.00021973,2]
[378075861,1754717445786,-500.0,0.00021973,2]
[378075862,1754717445795,-500.0,0.00021973,2]
[378075863,1754717445807,-500.0,0.00021973,2]
[378075864,1754717445816,-500.0,0.00021973,2]
[378075865,1754717445825,-500.0,0.00021973,2]
[378075866,1754717445835,-500.0,0.00021973,2]
[378075867,1754717445844,-500.0,0.00021973,2]
[378075868,1754717445853,-500.0,0.00021973,2]
[378075869,1754717445862,-500.0,0.00021973,2]
[378075870,1754717445871,-500.0,0.00021973,2]
[378075871,1754717445881,-500.0,0.00021973,2]
[378075872,1754717445890,-500.0,0.00021973,2]
[378075873,1754717445900,-500.0,0.00021973,2]
[378075874,1754717445909,-500.0,0.00021973,2]
[378075875,1754717445919,-500.0,0.00021973,2]
[378075876,1754717445928,-500.0,0.00021973,2]
[378075877,1754717445938,-500.0,0.00021973,2]
[378075878,1754717445947,-348.73600961,0.00021973,2]
[378075879,1754717445957,-500.0,0.00021973,2]
[378075880,1754717445966,-500.0,0.00021973,2]
[378075881,1754717445975,-500.0,0.00021973,2]
[378075882,1754717445985,-500.0,0.00021973,2]
[378075883,1754717445994,-173.47599236,0.00021973,2]
[378075884,1754717446003,-500.0,0.00021973,2]
[378075885,1754717446013,-500.0,0.00021973,2]
[378075886,1754717446023,-500.0,0.00021973,2]
[378075887,1754717446031,-500.0,0.00021973,2]
[378075888,1754717446041,-500.0,0.00021973,2]
[378075889,1754717446051,-500.0,0.00021973,2]
[378075890,1754717446070,-500.0,0.00021973,2]
[378075891,1754717446083,-500.0,0.00021973,2]
[378075892,1754717446094,-521.13419084,0.00021973,2]
[378075893,1754717446104,-500.0,0.00021973,2]
[378075894,1754717446117,-503.85479261,0.00021973,2]
[378075895,1754717446127,-162.22192798,0.00021973,2]
[378075896,1754717446138,-500.0,0.00021973,2]
[378075897,1754717446148,-500.0,0.00021973,2]
[378075898,1754717446158,-154.37255932,0.00021973,2]
[378075899,1754717446168,-500.0,0.00021973,2]
[378075901,1754717446177,-349.37854188,0.00021973,2]
[378075903,1754717446188,-500.0,0.00021973,2]
[378075905,1754717446198,-168.67082871,0.00021973,2]
[378075906,1754717446208,-500.0,0.00021973,2]
[378075907,1754717446218,-500.0,0.00021973,2]
[378075908,1754717446229,-500.0,0.00021973,2]
[378075909,1754717446239,-500.0,0.00021973,2]
[378075910,1754717446249,-500.0,0.00021973,2]
[378075911,1754717446258,-500.0,0.00021973,2]
[378075912,1754717446268,-500.0,0.00021973,2]
[378075913,1754717446278,-621.33073829,0.00021973,2]
[378075914,1754717446287,-500.0,0.00021973,2]
[378075915,1754717446297,-500.0,0.00021973,2]
[378075916,1754717446307,-500.358427,0.00021973,2]
[378075917,1754717446317,-500.0,0.00021973,2]
[378075918,1754717446328,-216.74363151,0.00021973,2]
[378075919,1754717446338,-503.18081389,0.00021973,2]
[378075920,1754717446348,-500.0,0.00021973,2]
[378075921,1754717446358,-500.0,0.00021973,2]
[378075922,1754717446367,-500.0,0.00021973,2]
[378075923,1754717446377,-500.0,0.00021973,2]
[378075924,1754717446386,-500.0,0.00021973,2]
[378075925,1754717446396,-500.0,0.00021973,2]
[378075926,1754717446406,-444.94297221,0.00021973,2]
[378075927,1754717446415,-500.0,0.00021973,2]
[378075928,1754717446425,-2264.10087164,0.00021981,2]
[378075929,1754717446435,-80917.47776675,0.0002199,2]
[378075930,1754717446444,-151.0,0.00022,8]
[378075931,1754717446454,-151.0,0.00022,3]
[378075932,1754717446464,-2975.86397564,0.00022,2]
[378075933,1754717446473,-259.67,0.00022,2]
[378075934,1754717446483,-500.0,0.00022015,2]
[378075935,1754717446493,-2347.87260389,0.00022036,2]
[378075936,1754717446503,-402.0,0.00022088,2]
[378075937,1754717446515,-2374.44319384,0.00022091,2]
[378075938,1754717446526,-151.0,0.000221,5]
[378075939,1754717446535,-151.0,0.000221,6]
[378075940,1754717446545,-151.0,0.000221,8]
[378075941,1754717446556,-151.0,0.000221,9]
[378075942,1754717446566,-200.0,0.0002215,15]
[378075943,1754717446576,-200.0,0.0002215,15]
[378075944,1754717446586,-200.0,0.0002215,15]
[378075945,1754717446596,-200.0,0.0002215,15]
[378075946,1754717446606,-200.0,0.0002215,15]
[378075947,1754717446615,-500.0,0.00022173,2]
[378075948,1754717446625,-500.0,0.00022173,2]
[378075949,1754717446635,-500.0,0.00022173,2]
[378075950,1754717446646,-500.0,0.00022173,2]
[378075952,1754717446666,-500.0,0.00022173,2]
[378075954,1754717446687,-500.0,0.00022173,2]
[378075956,1754717446706,-337.94633993,0.00022173,2]
[378075958,1754717446716,-500.0,0.00022173,2]
[378075959,1754717446729,-500.0,0.00022173,2]
[378075960,1754717446749,-500.0,0.00022173,2]
[378075962,1754717446758,-500.0,0.00022173,2]
[378075964,1754717446767,-500.0,0.0002219,2]
[378075966,1754717446777,-500.0,0.0002219,2]
[378075968,1754717446786,-522.07414872,0.0002219,2]
[378075970,1754717446795,-460.0,0.00022191,2]
[378075971,1754717446806,-460.0,0.00022191,2]
[378075973,1754717446817,-460.0,0.00022191,2]
[378075975,1754717446832,-460.0,0.00022191,2]
[378075977,1754717446842,-463.04227003,0.00022191,2]
[378075978,1754717446852,-460.0,0.00022191,2]
[378075980,1754717446862,-469.33847103,0.00022191,2]
[378075982,1754717446871,-460.0,0.00022191,2]
[378075984,1754717446881,-525.21829543,0.00022191,2]
[378075986,1754717446892,-476.85124798,0.00022191,2]
[378075988,1754717446902,-466.31340937,0.00022191,2]
[378075990,1754717446913,-470.80189048,0.00022191,2]
[378075992,1754717446923,-460.0,0.00022191,2]
[378075994,1754717446933,-460.0,0.00022191,2]
[378075996,1754717446945,-460.0,0.00022191,2]
[378075998,1754717446954,-460.0,0.00022191,2]
[378076000,1754717446963,-460.0,0.00022191,2]
[378076002,1754717446973,-460.0,0.00022191,2]
[378076004,1754717446982,-460.0,0.00022191,2]
[378076005,1754717446991,-460.0,0.00022191,2]
[378076007,1754717447000,-460.0,0.00022191,2]
[378076009,1754717447010,-460.0,0.00022191,2]
[378076011,1754717447019,-460.0,0.00022191,2]
[378076013,1754717447028,-460.0,0.00022191,2]
[378076015,1754717447037,-460.0,0.00022191,2]
[378076017,1754717447047,-460.0,0.00022191,2]
[378076019,1754717447059,-467.13030656,0.00022191,2]
[378076021,1754717447069,-460.0,0.00022191,2]
[378076023,1754717447078,-460.0,0.00022191,2]
[378076025,1754717447087,-460.0,0.00022191,2]
[378076027,1754717447097,-460.0,0.00022191,2]
[378076029,1754717447108,-460.0,0.00022191,2]
[378076030,1754717447118,-460.0,0.00022191,2]
[378076032,1754717447128,-470.12996014,0.00022191,2]
[378076034,1754717447137,-460.0,0.00022191,2]
[378076036,1754717447148,-460.0,0.00022191,2]
[378076038,1754717447157,-464.76193236,0.00022191,2]
[378076040,1754717447167,-520.26209175,0.00022191,2]
[378076042,1754717447177,-460.0,0.00022191,2]
[378076044,1754717447186,-460.0,0.00022191,2]
[378076046,1754717447196,-460.0,0.00022191,2]
[378076048,1754717447206,-460.0,0.00022191,2]
[378076050,1754717447215,-463.68403055,0.00022191,2]
[378076059,1754717447326,-632.83,0.00022191,2]
[378076060,1754717447336,-460.0,0.00022191,2]
[378076062,1754717447346,-460.0,0.00022191,2]
[378076064,1754717447355,-460.0,0.00022191,2]
[378076066,1754717447364,-224.2553594,0.00022191,2]
[378076067,1754717447373,-460.0,0.00022191,2]
[378076069,1754717447382,-460.0,0.00022191,2]
[378076071,1754717447392,-460.0,0.00022191,2]
[378076073,1754717447406,-467.15600279,0.00022191,2]
[378076074,1754717447420,-460.0,0.00022191,2]
[378076076,1754717447430,-467.22778876,0.00022191,2]
[378076078,1754717447445,-460.0,0.00022191,2]
[378076080,1754717447454,-460.0,0.00022191,2]
[378076082,1754717447464,-460.0,0.00022191,2]
[378076083,1754717447473,-460.0,0.00022191,2]
[378076084,1754717447484,-457.02906027,0.00022191,2]
[378076085,1754717447493,-460.0,0.00022191,2]
[378076086,1754717447504,-466.01722623,0.00022191,2]
[378076087,1754717447518,-460.0,0.00022191,2]
[378076088,1754717447530,-460.0,0.00022191,2]
[378076089,1754717447540,-464.68716213,0.00022191,2]
[378076090,1754717447550,-460.0,0.00022191,2]
[378076091,1754717447559,-460.0,0.00022191,2]
[378076092,1754717447568,-279.52667318,0.00022191,2]
[378076093,1754717447578,-460.0,0.00022191,2]
[378076094,1754717447587,-460.0,0.00022191,2]
[378076095,1754717447597,-460.0,0.00022191,2]
[378076096,1754717447606,-460.0,0.00022191,2]
[378076097,1754717447615,-462.69833513,0.00022191,2]
[378076098,1754717447624,-487.80644553,0.00022191,2]
[378076099,1754717447634,-460.0,0.00022191,2]
[378076100,1754717447644,-460.0,0.00022191,2]
[378076101,1754717447653,-460.0,0.00022191,2]
[378076102,1754717447662,-460.0,0.00022191,2]
[378076103,1754717447671,-271.77467419,0.00022191,2]
[378076104,1754717447682,-460.0,0.00022191,2]
[378076105,1754717447691,-460.0,0.00022191,2]
[378076106,1754717447701,-460.0,0.00022191,2]
[378076107,1754717447710,-748.0,0.00022191,2]
[378076108,1754717447719,-460.0,0.00022191,2]
[378076109,1754717447729,-460.0,0.00022191,2]
[378076110,1754717447742,-503.24,0.00022191,2]
[378076112,1754717447751,-289.56073616,0.00022191,2]
[378076113,1754717447760,-464.49308287,0.00022191,2]
[378076115,1754717447770,-460.0,0.00022191,2]
[378076117,1754717447779,-460.0,0.00022191,2]
[378076119,1754717447788,-460.0,0.00022191,2]
[378076121,1754717447798,-460.0,0.00022191,2]
[378076122,1754717447807,-460.0,0.00022191,2]
[378076124,1754717447816,-460.0,0.00022191,2]
[378076126,1754717447825,-462.48057749,0.00022191,2]
[378076127,1754717447835,-460.0,0.00022191,2]
[378076129,1754717447844,-467.23216925,0.00022191,2]
[378076131,1754717447853,-460.0,0.00022191,2]
[378076133,1754717447863,-460.0,0.00022191,2]
[378076134,1754717447872,-360.55942767,0.00022191,2]
[378076136,1754717447881,-265.95740071,0.00022191,2]
[378076138,1754717447891,-460.0,0.00022191,2]
[378076140,1754717447900,-460.0,0.00022191,2]
[378076142,1754717447910,-872.77,0.00022191,2]
[378076143,1754717447919,-460.0,0.00022191,2]
[378076144,1754717447929,-460.0,0.00022191,2]
[378076145,1754717447939,-460.0,0.00022191,2]
[378076147,1754717447948,-460.0,0.00022191,2]
[378076149,1754717447957,-460.0,0.00022191,2]
[378076151,1754717447967,-211.56687245,0.00022191,2]
[378076152,1754717447976,-460.0,0.00022191,2]
[378076154,1754717447985,-623.59,0.00022191,2]
[378076156,1754717447994,-460.0,0.00022191,2]
[378076158,1754717448003,-469.68804925,0.00022191,2]
[378076160,1754717448013,-460.0,0.00022191,2]
[378076162,1754717448021,-460.0,0.00022191,2]
[378076163,1754717448030,-460.0,0.00022191,2]
[378076165,1754717448039,-460.0,0.00022191,2]
[378076167,1754717448050,-460.0,0.00022191,2]
[378076169,1754717448060,-460.0,0.00022191,2]
[378076171,1754717448070,-460.0,0.00022191,2]
[378076172,1754717448084,-460.0,0.00022191,2]
[378076174,1754717448093,-460.0,0.00022191,2]
[378076176,1754717448103,-460.0,0.00022191,2]
[378076178,1754717448112,-460.0,0.00022191,2]
[378076180,1754717448122,-460.0,0.00022191,2]
[378076181,1754717448132,-171.68268685,0.00022191,2]
[378076183,1754717448141,-212.37175286,0.00022191,2]
[378076184,1754717448150,-460.0,0.00022191,2]
[378076186,1754717448160,-460.0,0.00022191,2]
[378076187,1754717448169,-460.0,0.00022191,2]
[378076188,1754717448178,-460.0,0.00022191,2]
[378076189,1754717448187,-460.0,0.00022191,2]
[378076190,1754717448197,-462.92974617,0.00022191,2]
[378076191,1754717448206,-461.68248635,0.00022191,2]
[378076192,1754717448216,-462.56734914,0.00022191,2]
[378076193,1754717448225,-456.01625484,0.00022191,2]
[378076194,1754717448234,-467.50982162,0.00022191,2]
[378076195,1754717448243,-463.30281193,0.00022191,2]
[378076196,1754717448253,-460.0,0.00022191,2]
[378076197,1754717448262,-419.36327399,0.00022191,2]
[378076198,1754717448272,-460.0,0.00022191,2]
[378076199,1754717448282,-460.0,0.00022191,2]
[378076200,1754717448292,-460.0,0.00022191,2]
[378076201,1754717448301,-463.22645197,0.00022191,2]
[378076202,1754717448311,-460.0,0.00022191,2]
[378076203,1754717448322,-460.0,0.00022191,2]
[378076204,1754717448332,-460.0,0.00022191,2]
[378076205,1754717448341,-460.0,0.00022191,2]
[378076206,1754717448351,-505.09777884,0.00022191,2]
[378076207,1754717448360,-461.09775813,0.00022191,2]
[378076208,1754717448370,-460.0,0.00022191,2]
[378076209,1754717448379,-467.73685556,0.00022191,2]
[378076210,1754717448389,-460.0,0.00022191,2]
[378076211,1754717448398,-460.0,0.00022191,2]
[378076212,1754717448408,-481.14,0.00022191,2]
[378076213,1754717448417,-1328.21,0.00022191,2]
[378076214,1754717448426,-460.0,0.00022191,2]
[378076215,1754717448436,-460.0,0.00022191,2]
[378076216,1754717448445,-460.0,0.00022191,2]
[378076217,1754717448454,-1419.17,0.00022191,2]
[378076218,1754717448464,-465.21206421,0.00022191,2]
[378076219,1754717448473,-460.0,0.00022191,2]
[378076220,1754717448483,-548.91,0.00022191,2]
[378076221,1754717448493,-460.0,0.00022191,2]
[378076222,1754717448502,-460.0,0.00022191,2]
[378076223,1754717448513,-460.0,0.00022191,2]
[378076224,1754717448523,-460.0,0.00022191,2]
[378076225,1754717448533,-460.0,0.00022191,2]
[378076226,1754717448543,-460.0,0.00022191,2]
[378076227,1754717448553,-460.0,0.00022191,2]
[378076228,1754717448563,-460.0,0.00022191,2]
[378076229,1754717448573,-460.0,0.00022191,2]
[378076230,1754717448583,-460.0,0.00022191,2]
[378076231,1754717448593,-460.0,0.00022191,2]
[378076232,1754717448604,-460.0,0.00022191,2]
[378076233,1754717448613,-460.0,0.00022191,2]
[378076234,1754717448622,-460.0,0.00022191,2]
[378076235,1754717448631,-467.85916128,0.00022191,2]
[378076236,1754717448640,-1181.72,0.00022191,2]
[378076237,1754717448650,-460.0,0.00022191,2]
[378076238,1754717448659,-460.0,0.00022191,2]
[378076239,1754717448669,-463.72282106,0.00022191,2]
[378076240,1754717448678,-460.0,0.00022191,2]
[378076241,1754717448687,-460.0,0.00022191,2]
[378076242,1754717448697,-460.0,0.00022191,2]
[378076243,1754717448706,-813.16,0.00022191,2]
[378076244,1754717448782,-460.0,0.00022191,2]
[378076245,1754717448799,-425.4260762,0.00022191,2]
[378076246,1754717448810,-460.0,0.00022191,2]
[378076247,1754717448819,-460.0,0.00022191,2]
[378076248,1754717448829,-460.0,0.00022191,2]
[378076249,1754717448838,-460.0,0.00022191,2]
[378076250,1754717448847,-460.0,0.00022191,2]
[378076251,1754717448856,-460.0,0.00022191,2]
[378076252,1754717448866,-460.0,0.00022191,2]
[378076253,1754717448875,-460.86277649,0.00022191,2]
[378076254,1754717448884,-622.45,0.00022191,2]
[378076255,1754717448894,-1619.97,0.00022191,2]
[378076256,1754717448903,-779.99,0.00022191,2]
[378076257,1754717448912,-460.0,0.00022191,2]
[378076258,1754717448921,-460.0,0.00022191,2]
[378076259,1754717448930,-460.0,0.00022191,2]
[378076260,1754717448940,-1148.8,0.00022191,2]
[378076261,1754717448949,-439.54857351,0.00022191,2]
[378076262,1754717448959,-460.0,0.00022191,2]
[378076263,1754717448969,-460.0,0.00022191,2]
[378076264,1754717448978,-460.0,0.00022191,2]
[378076265,1754717448987,-1244.78,0.00022191,2]
[378076266,1754717448997,-460.0,0.00022191,2]
[378076267,1754717449007,-474.23827294,0.00022191,2]
[378076268,1754717449016,-2519.37,0.00022191,2]
[378076269,1754717449026,-460.0,0.00022191,2]
[378076270,1754717449036,-479.70373507,0.00022191,2]
[378076271,1754717449046,-503.86,0.00022191,2]
[378076272,1754717449056,-638.61,0.00022191,2]
[378076273,1754717449066,-603.35,0.00022191,2]
[378076274,1754717449075,-710.26,0.00022191,2]
[378076275,1754717449085,-460.0,0.00022191,2]
[378076276,1754717449095,-460.0,0.00022191,2]
[378076277,1754717449105,-460.0,0.00022191,2]
[378076278,1754717449115,-460.0,0.00022191,2]
[378076279,1754717449125,-460.0,0.00022191,2]
[378076280,1754717449135,-460.0,0.00022191,2]
[378076281,1754717449145,-467.63045307,0.00022191,2]
[378076282,1754717449154,-470.61630066,0.00022191,2]
[378076283,1754717449163,-463.57266305,0.00022191,2]